[Event "Fast Chess"]
[Site "ChessKid.com"]
[Date "2020.04.30"]
[Round "2"]
[White "Georgiev, Maximilian"]
[Black "Dai, Lana"]
[Result "1/2-1/2"]
[ECO "C77"]
[WhiteElo "1404"]
[BlackElo "1309"]
[Annotator "Endspiel Turm gg Freibauer"]
[PlyCount "140"]
[EventDate "2020.??.??"]
[TimeControl "1200"]
[WhiteClock "0:14:01"]
[BlackClock "0:15:20"]

1. e4 {[%emt 0:00:02]} e5 {[%emt 0:00:02]} 2. Nf3 {[%emt 0:00:01]} Nc6 {
[%emt 0:00:03]} 3. Bb5 {[%emt 0:00:02]} Nf6 {[%emt 0:00:03]} 4. Nc3 {[%emt 0:
00:03]} a6 {[%emt 0:00:02]} 5. Ba4 {[%emt 0:00:02]} b5 {[%emt 0:00:02]} 6. Bb3
{[%emt 0:00:01]} b4 {[%emt 0:00:03]} 7. Nd5 {[%emt 0:00:07]} Nxd5 {[%emt 0:00:
02]} 8. Bxd5 {[%emt 0:00:02]} Bc5 {[%emt 0:00:05]} 9. O-O {[%emt 0:00:03]} Rb8
{[%emt 0:00:06]} 10. d3 {[%emt 0:00:05]} h6 {[%emt 0:00:04]} 11. Bxc6 {[%emt 0:
00:05]} dxc6 {[%emt 0:00:01]} 12. Nxe5 {[%emt 0:00:01]} Qd6 {[%emt 0:00:10]}
13. Nf3 {[%emt 0:00:07]} Qg6 {[%emt 0:00:05]} 14. Nh4 {[%emt 0:00:08]} Qd6 {
[%emt 0:00:12]} 15. Nf5 {[%emt 0:00:10]} Bxf5 {[%emt 0:00:08]} 16. exf5 {
[%emt 0:00:01]} O-O {[%emt 0:00:03]} 17. Qf3 {[%emt 0:00:07]} Qe5 {[%emt 0:00:
17]} 18. Bf4 {[%emt 0:00:07]} Qe7 {[%emt 0:00:18]} 19. Rfe1 {[%emt 0:00:07]}
Qd7 {[%emt 0:00:17]} 20. Qg3 {[%emt 0:00:07]} Kh8 {[%emt 0:00:24]} 21. Bxc7 {
[%emt 0:00:07]} Rbc8 {[%emt 0:00:22]} 22. Be5 {[%emt 0:00:02]} f6 {[%emt 0:00:
09]} 23. Bf4 {[%emt 0:00:06]} Qxf5 {[%emt 0:00:05]} 24. Be3 {[%emt 0:00:10]}
Bxe3 {[%emt 0:00:03]} 25. Rxe3 {[%emt 0:00:02]} Rce8 {[%emt 0:00:10]} 26. Rxe8
{[%emt 0:00:03]} Rxe8 {[%emt 0:00:01]} 27. h3 {[%emt 0:00:09]} Re2 {[%emt 0:00:
09]} 28. Rc1 {[%emt 0:00:09]} Qe5 {[%emt 0:00:06]} 29. Qxe5 {[%emt 0:00:04]}
Rxe5 {[%emt 0:00:01]} 30. c3 {[%emt 0:00:06]} bxc3 {[%emt 0:00:01]} 31. Rxc3 {
[%emt 0:00:01]} c5 {[%emt 0:00:01]} 32. b3 {[%emt 0:00:06]} Re1+ {[%emt 0:00:
04]} 33. Kh2 {[%emt 0:00:02]} Re2 {[%emt 0:00:06]} 34. Rxc5 {[%emt 0:00:06]}
Rxf2 {[%emt 0:00:02]} 35. a4 {[%emt 0:00:05]} Rd2 {[%emt 0:00:05]} 36. Ra5 {
[%emt 0:00:03]} Rxd3 {[%emt 0:00:02]} 37. Rxa6 {[%emt 0:00:01]} Rxb3 {[%emt 0:
00:03]} 38. Ra8+ {[%emt 0:00:01]} Kh7 {[%emt 0:00:03]} 39. a5 {[%emt 0:00:02]}
Ra3 {[%emt 0:00:04]} 40. Kg1 {[%emt 0:00:03]} Ra1+ {[%emt 0:00:05]} 41. Kf2 {
[%emt 0:00:01]} Ra2+ {[%emt 0:00:02]} 42. Ke3 {[%emt 0:00:01]} f5 {[%emt 0:00:
03]} 43. Kf4 {[%emt 0:00:03]} Kg6 {[%emt 0:00:08]} 44. g4 {[%emt 0:00:04]} fxg4
{[%emt 0:00:01]} 45. hxg4 {[%emt 0:00:01]} Ra4+ {[%emt 0:00:02]} 46. Kf3 {
[%emt 0:00:04]} Kg5 {[%emt 0:00:05]} 47. a6 {[%emt 0:00:02]} Rxg4 {[%emt 0:00:
03]} 48. a7 {[%emt 0:00:02]} h5 {[%emt 0:00:06]} 49. Rg8 {[%emt 0:00:05]} Rf4+
{[%emt 0:00:01]} 50. Ke3 {[%emt 0:00:03]} Ra4 {[%emt 0:00:11]} 51. a8=Q {
[%emt 0:00:02]} Rxa8 {[%emt 0:00:03]} 52. Rxa8 {[%emt 0:00:02]} h4 {[%emt 0:00:
02]} 53. Rg8 {[%emt 0:00:04]} g6 {[%emt 0:00:01]} 54. Ra8 {[%emt 0:00:05]} h3 {
[%emt 0:00:03]} 55. Kf2 {[%emt 0:00:01]} Kg4 {[%emt 0:00:04]} 56. Rh8 {[%emt 0:
00:07]} g5 {[%emt 0:00:03]} 57. Kg1 {[%emt 0:00:01]} Kg3 {[%emt 0:00:02]} 58.
Kh1 {[%emt 0:00:03]} g4 {[%emt 0:00:04]} 59. Kg1 {[%emt 0:00:01]} h2+ {[%emt 0:
00:10]} 60. Kh1 {[%emt 0:00:04]} Kf3 {[%emt 0:00:07]} 61. Rxh2 {[%emt 0:00:02]}
g3 {[%emt 0:00:01]} 62. Rg2 {[%emt 0:00:03]} Kg4 {[%emt 0:00:08]} 63. Kg1 {
[%emt 0:00:03]} Kh3 {[%emt 0:00:03]} 64. Kf1 {[%emt 0:00:06]} Kg4 {[%emt 0:00:
03]} 65. Ke2 {[%emt 0:00:03]} Kf4 {[%emt 0:00:06]} 66. Kd3 $4 {[%emt 0:00:06]}
Kf3 {[%emt 0:00:02]} 67. Ra2 {[%emt 0:00:07]} g2 {[%emt 0:00:03]} 68. Ra1 {
[%emt 0:00:04]} Kf2 {[%emt 0:00:02]} 69. Kd2 {[%emt 0:00:16]} g1=Q {[%emt 0:00:
02]} 70. Rxg1 {[%emt 0:00:00]} Kxg1 {[%emt 0:00:01] Game drawn - insufficient
material} 1/2-1/2

[Event "Fast Chess"]
[Site "ChessKid.com"]
[Date "2020.04.30"]
[Round "2"]
[White "Sasse, Gabriel"]
[Black "Rosenkranz, Benjamin"]
[Result "0-1"]
[ECO "C57"]
[WhiteElo "1265"]
[BlackElo "1166"]
[Annotator "Preussisch, Ausschalten Verteidigung"]
[PlyCount "92"]
[EventDate "2020.??.??"]
[TimeControl "1200"]
[WhiteClock "0:16:05"]
[BlackClock "0:17:56"]

1. e4 {[%emt 0:00:03]} e5 {[%emt 0:00:02]} 2. Nf3 {[%emt 0:00:01]} Nc6 {
[%emt 0:00:04]} 3. Bc4 {[%emt 0:00:00]} Nf6 {[%emt 0:00:06]} 4. Ng5 {[%emt 0:
00:01]} d5 {[%emt 0:00:07]} 5. exd5 {[%emt 0:00:02]} Nxd5 {[%emt 0:00:04]} 6.
Nc3 {[%emt 0:00:01]} Be6 {[%emt 0:00:27]} 7. Nxd5 {[%emt 0:00:04]} Bxd5 {
[%emt 0:00:10]} 8. Bxd5 {[%emt 0:00:02]} Qxd5 {[%emt 0:00:02]} 9. O-O {[%emt 0:
00:03]} O-O-O {[%emt 0:00:02]} 10. Qg4+ {[%emt 0:00:03]} Qd7 {[%emt 0:00:05]}
11. Qxd7+ {[%emt 0:00:06]} Rxd7 {[%emt 0:00:02]} 12. d3 {[%emt 0:00:03]} Be7 {
[%emt 0:00:10]} 13. Nxf7 {[%emt 0:00:03]} Rf8 {[%emt 0:00:07]} 14. Bg5 $4 {
[%emt 0:00:10]} Rxf7 {[%emt 0:00:06]} 15. Bxe7 {[%emt 0:00:01]} Rfxe7 {[%emt 0:
00:02]} 16. c3 {[%emt 0:00:05]} Rxd3 {[%emt 0:00:06]} 17. Rae1 {[%emt 0:00:01]}
Rd2 {[%emt 0:00:05]} 18. f4 {[%emt 0:00:02]} exf4 {[%emt 0:00:04]} 19. Rxe7 {
[%emt 0:00:04]} Nxe7 {[%emt 0:00:03]} 20. Re1 {[%emt 0:00:03]} Kd7 {[%emt 0:00:
15]} 21. Re4 {[%emt 0:00:04]} Rxb2 {[%emt 0:00:03]} 22. Rxf4 {[%emt 0:00:02]}
Rxa2 {[%emt 0:00:03]} 23. Rf7 {[%emt 0:00:02]} g6 {[%emt 0:00:11]} 24. Rxh7 {
[%emt 0:00:01]} Ke6 {[%emt 0:00:02]} 25. Rh3 {[%emt 0:00:04]} Nf5 {[%emt 0:00:
02]} 26. Rd3 {[%emt 0:00:05]} b6 {[%emt 0:00:03]} 27. c4 {[%emt 0:00:05]} Ra4 {
[%emt 0:00:04]} 28. Rc3 {[%emt 0:00:06]} Nd4 {[%emt 0:00:05]} 29. Re3+ {
[%emt 0:00:05]} Kd6 {[%emt 0:00:06]} 30. Rc3 {[%emt 0:00:02]} Ra2 {[%emt 0:00:
07]} 31. Rg3 {[%emt 0:00:05]} Kc5 {[%emt 0:00:05]} 32. Rxg6 {[%emt 0:00:02]}
Kxc4 {[%emt 0:00:02]} 33. Rg7 {[%emt 0:00:02]} c6 {[%emt 0:00:05]} 34. Rg4 {
[%emt 0:00:03]} Kc5 {[%emt 0:00:04]} 35. Rg5+ {[%emt 0:00:02]} Kd6 {[%emt 0:00:
06]} 36. Rg6+ {[%emt 0:00:03]} Ne6 {[%emt 0:00:02]} 37. g4 {[%emt 0:00:02]} Ke5
{[%emt 0:00:05]} 38. h4 {[%emt 0:00:01]} Nf4 {[%emt 0:00:08]} 39. h5 {[%emt 0:
00:02]} Nxg6 {[%emt 0:00:05]} 40. h6 {[%emt 0:00:02]} c5 {[%emt 0:00:08]} 41.
h7 {[%emt 0:00:02]} c4 {[%emt 0:00:01]} 42. h8=Q+ {[%emt 0:00:02]} Nxh8 {
[%emt 0:00:02]} 43. g5 {[%emt 0:00:01]} c3 {[%emt 0:00:02]} 44. g6 {[%emt 0:00:
00]} Nxg6 {[%emt 0:00:02]} 45. Kf1 {[%emt 0:00:02]} c2 {[%emt 0:00:01]} 46. Ke1
{[%emt 0:00:01]} c1=R# {[%emt 0:00:03] FineBeamingStage won by checkmate} 0-1

[Event "Fast Chess"]
[Site "ChessKid.com"]
[Date "2020.04.30"]
[Round "3"]
[White "Rosenkranz, Benjamin"]
[Black "Georgiev, Maximilian"]
[Result "0-1"]
[ECO "C55"]
[WhiteElo "1163"]
[BlackElo "1407"]
[Annotator "Springergabel, Entwicklung"]
[PlyCount "62"]
[EventDate "2020.??.??"]
[TimeControl "1200"]
[WhiteClock "0:17:29"]
[BlackClock "0:15:30"]

1. e4 {[%emt 0:00:05]} e5 {[%emt 0:00:01]} 2. Nf3 {[%emt 0:00:02]} Nc6 {
[%emt 0:00:01]} 3. Bc4 {[%emt 0:00:04]} h6 {[%emt 0:00:03]} 4. O-O {[%emt 0:00:
03]} Nf6 {[%emt 0:00:02]} 5. Nc3 {[%emt 0:00:03]} Nxe4 {[%emt 0:00:01]} 6. Nxe4
{[%emt 0:00:02]} d5 {[%emt 0:00:02]} 7. Bxd5 {[%emt 0:00:06]} Qxd5 {[%emt 0:00:
02]} 8. d3 {[%emt 0:00:02]} Be7 {[%emt 0:00:04]} 9. Be3 {[%emt 0:00:05]} O-O {
[%emt 0:00:03]} 10. Qd2 {[%emt 0:00:04]} Nb4 {[%emt 0:00:09]} 11. a3 {[%emt 0:
00:20]} Nc6 {[%emt 0:00:03]} 12. c4 {[%emt 0:00:12]} Qd8 {[%emt 0:00:04]} 13.
Bc5 {[%emt 0:00:12]} Bxc5 {[%emt 0:00:03]} 14. Nxc5 {[%emt 0:00:04]} Bg4 {
[%emt 0:00:10]} 15. Ne1 {[%emt 0:00:23]} e4 $2 {[%emt 0:00:08]} 16. Nxe4 {
[%emt 0:00:07]} Nd4 {[%emt 0:00:11]} 17. Nc5 $4 {[%emt 0:00:09]} b6 $1 {
[%emt 0:00:05]} 18. Ne4 {[%emt 0:00:14]} Nb3 {[%emt 0:00:05]} 19. Qc3 {[%emt 0:
00:14]} Nxa1 {[%emt 0:00:04]} 20. b3 {[%emt 0:00:38]} Be2 {[%emt 0:00:06]} 21.
Qxa1 {[%emt 0:00:06]} Bxf1 {[%emt 0:00:02]} 22. Kxf1 {[%emt 0:00:04]} Qh4 {
[%emt 0:00:08]} 23. Kg1 {[%emt 0:00:06]} c5 {[%emt 0:00:05]} 24. Nf3 {[%emt 0:
00:04]} Qf4 {[%emt 0:00:04]} 25. Qc3 {[%emt 0:00:27]} Rfd8 {[%emt 0:00:16]} 26.
h3 {[%emt 0:00:07]} Rd7 {[%emt 0:00:06]} 27. Kf1 {[%emt 0:00:05]} Rad8 {
[%emt 0:00:02]} 28. Ke2 {[%emt 0:00:04]} Rxd3 {[%emt 0:00:04]} 29. Qb2 {
[%emt 0:00:07]} Qxe4+ {[%emt 0:00:11]} 30. Kf1 {[%emt 0:00:06]} Rd1+ {[%emt 0:
00:04]} 31. Ne1 {[%emt 0:00:06]} Qxe1# {[%emt 0:00:03] TallSnazzyBall won by
checkmate} 0-1

[Event "Fast Chess"]
[Site "ChessKid.com"]
[Date "2020.04.30"]
[Round "3"]
[White "Dai, Lana"]
[Black "Li, Tobias"]
[Result "0-1"]
[ECO "C55"]
[WhiteElo "1301"]
[BlackElo "1305"]
[Annotator "Zischenzug, Fesselung"]
[PlyCount "38"]
[EventDate "2020.??.??"]
[TimeControl "1200"]
[WhiteClock "0:18:50"]
[BlackClock "0:17:58"]

1. e4 {[%emt 0:00:03]} e5 {[%emt 0:00:02]} 2. Nf3 {[%emt 0:00:01]} Nc6 {
[%emt 0:00:03]} 3. Nc3 {[%emt 0:00:01]} Nf6 {[%emt 0:00:02]} 4. Bc4 {[%emt 0:
00:02]} Bc5 {[%emt 0:00:02]} 5. h3 {[%emt 0:00:03]} O-O {[%emt 0:00:01]} 6. a3
{[%emt 0:00:01]} a6 {[%emt 0:00:02]} 7. b4 {[%emt 0:00:03]} Ba7 {[%emt 0:00:05]
} 8. b5 {[%emt 0:00:08]} axb5 {[%emt 0:00:02]} 9. Nxb5 {[%emt 0:00:02]} Bc5 {
[%emt 0:00:08]} 10. d3 {[%emt 0:00:08]} h6 {[%emt 0:00:04]} 11. O-O {[%emt 0:
00:07]} d6 {[%emt 0:00:03]} 12. Nh4 $5 {[%emt 0:00:12]} Nxe4 $6 {[%emt 0:00:05]
} 13. dxe4 $2 {[%emt 0:00:03]} Qxh4 {[%emt 0:00:02]} 14. Nxc7 {[%emt 0:00:04]}
Rb8 {[%emt 0:00:05]} 15. Qf3 {[%emt 0:00:19]} Bd7 {[%emt 0:00:09]} 16. Qg3 {
[%emt 0:00:17]} Qxe4 {[%emt 0:00:13]} 17. Bxh6 {[%emt 0:00:11]} Qh7 {[%emt 0:
00:01]} 18. Qxg7+ {[%emt 0:00:18]} Qxg7 {[%emt 0:00:03]} 19. Bxg7 {[%emt 0:00:
01]} Kxg7 {[%emt 0:00:01] OnlyHungryKiwi won by resignation} 0-1

[Event "Fast Chess"]
[Site "ChessKid.com"]
[Date "2020.05.01"]
[Round "1"]
[White "Dai, Lana"]
[Black "Georgiev, Maximilian"]
[Result "1-0"]
[ECO "C47"]
[WhiteElo "1312"]
[BlackElo "1391"]
[Annotator "Fesselung an Mattfeld"]
[PlyCount "85"]
[EventDate "2020.??.??"]
[TimeControl "600"]
[WhiteClock "0:07:29"]
[BlackClock "0:04:38"]

1. e4 {[%emt 0:00:08]} e5 {[%emt 0:00:01]} 2. Nf3 {[%emt 0:00:03]} Nc6 {
[%emt 0:00:02]} 3. Nc3 {[%emt 0:00:02]} Nf6 {[%emt 0:00:02]} 4. a3 {[%emt 0:00:
05]} h6 {[%emt 0:00:03]} 5. h3 {[%emt 0:00:01]} Bc5 {[%emt 0:00:00]} 6. b4 {
[%emt 0:00:02]} Bb6 {[%emt 0:00:02]} 7. b5 {[%emt 0:00:01]} Nd4 {[%emt 0:00:02]
} 8. Nxd4 {[%emt 0:00:02]} Bxd4 {[%emt 0:00:01]} 9. Bc4 {[%emt 0:00:06]} O-O {
[%emt 0:00:02]} 10. Ra2 {[%emt 0:00:04]} b6 {[%emt 0:00:03]} 11. Nd5 {[%emt 0:
00:05]} Nxd5 {[%emt 0:00:03]} 12. Bxd5 {[%emt 0:00:01]} Rb8 {[%emt 0:00:05]}
13. O-O {[%emt 0:00:07]} Bb7 {[%emt 0:00:02]} 14. Bxb7 {[%emt 0:00:04]} Rxb7 {
[%emt 0:00:01]} 15. c3 {[%emt 0:00:04]} Bc5 {[%emt 0:00:03]} 16. d4 {[%emt 0:
00:06]} exd4 {[%emt 0:00:02]} 17. cxd4 {[%emt 0:00:02]} Bd6 {[%emt 0:00:02]}
18. e5 {[%emt 0:00:03]} Be7 {[%emt 0:00:01]} 19. d5 {[%emt 0:00:03]} d6 {
[%emt 0:00:02]} 20. exd6 {[%emt 0:00:01]} Qxd6 {[%emt 0:00:02]} 21. a4 {
[%emt 0:00:15]} Rbb8 {[%emt 0:00:08]} 22. Ba3 {[%emt 0:00:02]} Qd7 {[%emt 0:00:
04]} 23. Bxe7 {[%emt 0:00:03]} Qxe7 {[%emt 0:00:01]} 24. Re1 {[%emt 0:00:04]}
Qd8 {[%emt 0:00:01]} 25. Re4 {[%emt 0:00:09]} Re8 {[%emt 0:00:03]} 26. Rxe8+ {
[%emt 0:00:03]} Qxe8 {[%emt 0:00:01]} 27. h4 {[%emt 0:00:18]} Qd8 {[%emt 0:00:
03]} 28. a5 {[%emt 0:00:06]} bxa5 {[%emt 0:00:03]} 29. Rxa5 {[%emt 0:00:01]}
Qxh4 {[%emt 0:00:06]} 30. d6 {[%emt 0:00:05]} cxd6 {[%emt 0:00:03]} 31. Qxd6 $4
{[%emt 0:00:02]} Ra8 $4 {[%emt 0:00:02]} 32. b6 {[%emt 0:00:03]} Re8 {[%emt 0:
00:14]} 33. Ra1 {[%emt 0:00:30]} axb6 {[%emt 0:00:05]} 34. Qxb6 {[%emt 0:00:04]
} Re6 {[%emt 0:00:09]} 35. Ra8+ {[%emt 0:00:11]} Kh7 {[%emt 0:00:02]} 36. Qb1+
{[%emt 0:00:16]} g6 {[%emt 0:00:04]} 37. Rf8 {[%emt 0:00:32]} Kg7 {[%emt 0:00:
04]} 38. Rd8 {[%emt 0:00:09]} h5 {[%emt 0:00:06]} 39. Rc8 {[%emt 0:00:00]} Rf6
{[%emt 0:00:04]} 40. Qb2 {[%emt 0:00:22]} Kh7 {[%emt 0:00:08]} 41. g3 {[%emt 0:
00:25]} Qg5 {[%emt 0:00:07]} 42. Qc3 {[%emt 0:00:20]} Re6 {[%emt 0:00:14]} 43.
Qh8# {[%emt 0:00:12] TopBrownCave won by checkmate} 1-0

[Event "Fast Chess"]
[Site "ChessKid.com"]
[Date "2020.05.01"]
[Round "1"]
[White "Li, Tobias"]
[Black "Sasse, Gabriel"]
[Result "1-0"]
[ECO "C54"]
[WhiteElo "1321"]
[BlackElo "1287"]
[Annotator "einzügige Einsteller"]
[PlyCount "51"]
[EventDate "2020.??.??"]
[TimeControl "600"]
[WhiteClock "0:08:49"]
[BlackClock "0:07:52"]

1. e4 {[%emt 0:00:02]} e5 {[%emt 0:00:01]} 2. Nf3 {[%emt 0:00:03]} Nc6 {
[%emt 0:00:00]} 3. Bc4 {[%emt 0:00:03]} Bc5 {[%emt 0:00:00]} 4. d3 {[%emt 0:00:
04]} h6 {[%emt 0:00:01]} 5. O-O {[%emt 0:00:04]} Nf6 {[%emt 0:00:01]} 6. c3 {
[%emt 0:00:11]} O-O {[%emt 0:00:02]} 7. d4 {[%emt 0:00:01]} exd4 {[%emt 0:00:
01]} 8. cxd4 {[%emt 0:00:02]} Bb4 {[%emt 0:00:01]} 9. Bd2 {[%emt 0:00:04]} Bxd2
{[%emt 0:00:03]} 10. Nbxd2 {[%emt 0:00:01]} a6 {[%emt 0:00:06]} 11. a3 {
[%emt 0:00:04]} b5 {[%emt 0:00:02]} 12. Bd5 {[%emt 0:00:01]} Nxd5 {[%emt 0:00:
03]} 13. exd5 {[%emt 0:00:02]} Ne7 {[%emt 0:00:02]} 14. Qb3 {[%emt 0:00:06]}
Bb7 {[%emt 0:00:05]} 15. Qe3 {[%emt 0:00:20]} Nxd5 {[%emt 0:00:05]} 16. Qe5 {
[%emt 0:00:05]} c6 {[%emt 0:00:05]} 17. Rfe1 {[%emt 0:00:03]} Ne7 {[%emt 0:00:
04]} 18. Qxe7 {[%emt 0:00:03]} Qxe7 {[%emt 0:00:02]} 19. Rxe7 {[%emt 0:00:01]}
Rae8 {[%emt 0:00:06]} 20. Rxe8 {[%emt 0:00:06]} Rxe8 {[%emt 0:00:01]} 21. h3 {
[%emt 0:00:01]} d5 {[%emt 0:00:04]} 22. b4 {[%emt 0:00:18]} Bc8 {[%emt 0:00:02]
} 23. Rc1 {[%emt 0:00:10]} Bd7 {[%emt 0:00:05]} 24. Ne5 {[%emt 0:00:04]} Bf5 {
[%emt 0:00:08]} 25. Nxc6 {[%emt 0:00:03]} Rc8 {[%emt 0:00:01]} 26. Ne7+ {
[%emt 0:00:07] OnlyHungryKiwi won by resignation} 1-0

[Event "Fast Chess"]
[Site "ChessKid.com"]
[Date "2020.05.01"]
[Round "2"]
[White "Dai, Lana"]
[Black "Li, Tobias"]
[Result "0-1"]
[ECO "C47"]
[WhiteElo "1305"]
[BlackElo "1329"]
[PlyCount "86"]
[EventDate "2020.??.??"]
[TimeControl "600"]
[WhiteClock "0:06:35"]
[BlackClock "0:05:30"]

1. e4 {[%emt 0:00:03]} e5 {[%emt 0:00:03]} 2. Nf3 {[%emt 0:00:02]} Nc6 {
[%emt 0:00:02]} 3. Nc3 {[%emt 0:00:02]} Nf6 {[%emt 0:00:02]} 4. a3 {[%emt 0:00:
04]} Bc5 {[%emt 0:00:03]} 5. b4 {[%emt 0:00:02]} Bb6 {[%emt 0:00:02]} 6. b5 {
[%emt 0:00:03]} Nd4 {[%emt 0:00:07]} 7. Nxd4 {[%emt 0:00:03]} Bxd4 {[%emt 0:00:
02]} 8. Ra2 {[%emt 0:00:02]} d6 {[%emt 0:00:06]} 9. h3 {[%emt 0:00:09]} O-O {
[%emt 0:00:03]} 10. Bc4 {[%emt 0:00:04]} a6 {[%emt 0:00:05]} 11. bxa6 {[%emt 0:
00:03]} bxa6 {[%emt 0:00:07]} 12. Nd5 {[%emt 0:00:02]} Be6 {[%emt 0:00:06]} 13.
Nxf6+ {[%emt 0:00:04]} Qxf6 {[%emt 0:00:05]} 14. Qe2 {[%emt 0:00:08]} h6 {
[%emt 0:00:08]} 15. Bxe6 {[%emt 0:00:04]} Qxe6 {[%emt 0:00:02]} 16. c4 {
[%emt 0:00:18]} c6 {[%emt 0:00:02]} 17. d3 {[%emt 0:00:08]} d5 {[%emt 0:00:03]}
18. exd5 {[%emt 0:00:03]} cxd5 {[%emt 0:00:02]} 19. cxd5 {[%emt 0:00:02]} Qxd5
{[%emt 0:00:02]} 20. O-O {[%emt 0:00:19]} Rac8 {[%emt 0:00:29]} 21. Qe4 {
[%emt 0:00:15]} Qxa2 {[%emt 0:00:06]} 22. Qg4 {[%emt 0:00:31]} Qe6 {[%emt 0:00:
08]} 23. Qg3 {[%emt 0:00:19]} Qf6 {[%emt 0:00:04]} 24. Bd2 {[%emt 0:00:23]} Rc2
{[%emt 0:00:25]} 25. Be3 {[%emt 0:00:17]} Bxe3 {[%emt 0:00:25]} 26. fxe3 {
[%emt 0:00:04]} Qg6 {[%emt 0:00:05]} 27. Qxg6 {[%emt 0:00:07]} fxg6 {[%emt 0:
00:02]} 28. Rxf8+ {[%emt 0:00:02]} Kxf8 {[%emt 0:00:02]} 29. d4 {[%emt 0:00:05]
} exd4 {[%emt 0:00:01]} 30. exd4 {[%emt 0:00:02]} Rd2 {[%emt 0:00:01]} 31. g4 {
[%emt 0:00:06]} Rxd4 {[%emt 0:00:02]} 32. Kf2 {[%emt 0:00:05]} Rd3 {[%emt 0:00:
02]} 33. a4 {[%emt 0:00:02]} Rxh3 {[%emt 0:00:03]} 34. Kg2 {[%emt 0:00:04]} Ra3
{[%emt 0:00:01]} 35. Kf2 {[%emt 0:00:05]} h5 {[%emt 0:00:01]} 36. gxh5 {
[%emt 0:00:04]} gxh5 {[%emt 0:00:01]} 37. a5 {[%emt 0:00:02]} h4 {[%emt 0:00:
03]} 38. Kg2 {[%emt 0:00:02]} h3+ {[%emt 0:00:01]} 39. Kh2 {[%emt 0:00:01]} g5
{[%emt 0:00:02]} 40. Kh1 {[%emt 0:00:04]} Ra2 {[%emt 0:00:03]} 41. Kg1 {
[%emt 0:00:03]} g4 {[%emt 0:00:01]} 42. Kh1 {[%emt 0:00:01]} g3 {[%emt 0:00:02]
} 43. Kg1 {[%emt 0:00:01]} Ra1# {[%emt 0:00:05] OnlyHungryKiwi won by checkmate
} 0-1

[Event "Fast Chess"]
[Site "ChessKid.com"]
[Date "2020.05.01"]
[Round "2"]
[White "Georgiev, Maximilian"]
[Black "Li, Patrick"]
[Result "1-0"]
[ECO "C55"]
[WhiteElo "1394"]
[BlackElo "1096"]
[PlyCount "57"]
[EventDate "2020.??.??"]
[TimeControl "600"]
[WhiteClock "0:06:25"]
[BlackClock "0:07:24"]

1. e4 {[%emt 0:00:02]} e5 {[%emt 0:00:02]} 2. Bc4 {[%emt 0:00:01]} Nc6 {
[%emt 0:00:02]} 3. Nf3 {[%emt 0:00:02]} Bc5 {[%emt 0:00:05]} 4. O-O {[%emt 0:
00:01]} Nf6 {[%emt 0:00:03]} 5. Nc3 {[%emt 0:00:04]} O-O {[%emt 0:00:03]} 6. d3
{[%emt 0:00:02]} a6 {[%emt 0:00:05]} 7. Bg5 {[%emt 0:00:02]} b5 {[%emt 0:00:09]
} 8. Bb3 {[%emt 0:00:02]} Nd4 {[%emt 0:00:10]} 9. Nxe5 {[%emt 0:00:05]} Bb4 {
[%emt 0:00:17]} 10. a3 {[%emt 0:00:05]} Bc5 {[%emt 0:00:05]} 11. Nf3 {[%emt 0:
00:09]} Nxf3+ {[%emt 0:00:10]} 12. Qxf3 {[%emt 0:00:02]} Be7 {[%emt 0:00:11]}
13. e5 {[%emt 0:00:01]} Ne8 {[%emt 0:00:13]} 14. Bxe7 {[%emt 0:00:06]} Qxe7 {
[%emt 0:00:05]} 15. Qxa8 {[%emt 0:00:02]} Qd8 {[%emt 0:00:11]} 16. Qe4 {
[%emt 0:00:05]} Qg5 {[%emt 0:00:16]} 17. Rfe1 {[%emt 0:00:16]} d5 {[%emt 0:00:
07]} 18. Qf3 {[%emt 0:00:10]} Bg4 {[%emt 0:00:07]} 19. Qg3 {[%emt 0:00:04]} f6
{[%emt 0:00:13]} 20. exf6 {[%emt 0:00:04]} gxf6 {[%emt 0:00:02]} 21. Bxd5+ {
[%emt 0:00:03]} Kh8 {[%emt 0:00:04]} 22. Bc6 {[%emt 0:00:11]} Nd6 {[%emt 0:00:
11]} 23. Re7 {[%emt 0:00:12]} Nf5 {[%emt 0:00:04]} 24. f4 {[%emt 0:00:16]} Qg6
{[%emt 0:00:11]} 25. Qe1 {[%emt 0:00:18]} Nxe7 {[%emt 0:00:04]} 26. Qxe7 {
[%emt 0:00:02]} Bh3 {[%emt 0:00:05]} 27. Qxf8+ {[%emt 0:00:09]} Qg8 {[%emt 0:
00:21]} 28. Qxg8+ {[%emt 0:00:02]} Kxg8 {[%emt 0:00:00]} 29. gxh3 {[%emt 0:00:
00] TallSnazzyBall won by resignation} 1-0